bitfinex/quotes_SOLUSD_20250721
["timestamp","ask_amount","ask_price","bid_price","bid_amount"]
[1753065655960,0.69,182.88,182.86,0.5]
[1753065656128,0.69,182.88,182.85,5.51418817]
[1753065657240,0.06,182.96,182.9,26.0]
[1753065657550,0.06,182.96,182.91,39.39]
[1753065657866,0.06,182.96,182.95,5.51418817]
[1753065658731,0.06,182.96,182.93,5.46657015]
[1753065658930,0.06,182.96,182.95,5.51418817]
[1753065660042,0.06,182.96,182.95,50.41016247]
[1753065660232,0.06,182.96,182.95,44.43418817]
[1753065660430,0.06,182.96,182.94,0.5466273]
[1753065660658,6.20418817,182.95,182.88,5.51418817]
[1753065660868,0.69,182.95,182.9,5.51418817]
[1753065661154,6.20418817,182.94,182.88,5.51418817]
[1753065661339,6.20418817,182.93,182.88,39.06]
[1753065661536,0.69,182.92,182.88,39.06]
[1753065661737,0.69,182.92,182.88,44.57418817]
[1753065661970,0.69,182.92,182.9,5.51418817]
[1753065662138,0.69,182.94,182.9,5.51418817]
[1753065662339,5.51418817,182.95,182.9,5.51418817]
[1753065662539,0.69,182.93,182.9,5.51418817]
[1753065662734,5.57418817,182.96,182.9,5.51418817]
[1753065663048,0.75,182.96,182.88,44.52800757]
[1753065663235,0.75,182.96,182.91,5.51418817]
[1753065664146,0.75,182.96,182.92,5.51418817]
[1753065664352,0.06,182.96,182.92,5.51418817]
[1753065664556,0.69,182.95,182.94,5.51418817]
[1753065664766,0.69,182.95,182.92,5.51418817]
[1753065664959,0.69,182.94,182.92,5.51418817]
[1753065665134,0.69,182.94,182.9,65.04]
[1753065665335,0.06,182.96,182.91,5.51418817]
[1753065665336,0.69,182.93,182.91,5.51418817]
[1753065665734,0.69,182.95,182.91,5.51418817]
[1753065665935,0.69,182.95,182.92,5.51418817]
[1753065666141,0.69,182.95,182.93,5.51418817]
[1753065666332,0.06,182.96,182.93,5.51418817]
[1753065666540,6.20418817,182.95,182.85,32.81]
[1753065666739,6.20418817,182.94,182.88,31.51418817]
[1753065667043,0.69,182.93,182.88,5.51418817]
[1753065667242,1.5984,182.95,182.88,5.51418817]
[1753065667243,0.69,182.92,182.88,5.51418817]
[1753065667566,5.51418817,182.93,182.91,0.03]
[1753065667861,1.5984,182.95,182.91,0.03]
[1753065668170,0.69,182.93,182.91,0.03]
[1753065668575,5.51418817,182.93,182.91,0.03]
[1753065668743,0.69,182.92,182.91,0.03]
[1753065669976,6.20418817,182.92,182.91,0.03]
[1753065670139,0.69,182.92,182.91,0.03]
[1753065670338,6.20418817,182.92,182.91,0.03]
[1753065671572,0.69,182.92,182.91,0.03]
[1753065671775,6.20418817,182.92,182.91,0.03]
[1753065672358,0.69,182.92,182.91,0.03]
[1753065672698,6.20418817,182.92,182.91,0.03]
[1753065673248,0.69,182.92,182.91,0.03]
[1753065674257,0.7,182.95,182.91,0.03]
[1753065674468,6.21418817,182.95,182.91,0.03]
[1753065675143,0.7,182.95,182.91,0.03]
[1753065675342,6.21418817,182.95,182.91,0.03]
[1753065675565,5.51418817,182.95,182.91,0.03]
[1753065675770,0.7,182.94,182.91,0.03]
[1753065677352,0.7,182.93,182.91,0.03]
[1753065677567,0.7,182.95,182.91,0.03]
[1753065677875,0.7,182.94,182.91,0.03]
[1753065679185,0.7,182.93,182.91,0.03]
[1753065679770,6.27418817,182.96,182.91,0.03]
[1753065679964,0.7,182.95,182.91,0.03]
[1753065680388,0.06,182.96,182.92,5.51418817]
[1753065680767,0.76,182.96,182.92,5.51418817]
[1753065680967,0.7,182.95,182.92,5.51418817]
[1753065683389,0.06,182.96,182.93,5.51418817]
[1753065684786,2.06,182.96,182.93,5.51418817]
[1753065685390,2.06,182.96,182.91,0.03]
[1753065685391,6.21418817,182.95,182.91,0.03]
[1753065685568,0.7,182.95,182.91,11.011173]
[1753065685770,2.06,182.96,182.92,5.51418817]
[1753065685991,2.76,182.96,182.92,5.51418817]
[1753065686172,0.7,182.95,182.92,5.51418817]
[1753065686370,2.06,182.96,182.92,5.51418817]
[1753065686571,0.7,182.95,182.91,0.03]
[1753065686772,0.7,182.95,182.91,31.54418817]
[1753065686970,2.06,182.96,182.91,26.03]
[1753065687171,2.06,182.96,182.92,5.51418817]
[1753065687374,0.7,182.95,182.92,5.51418817]
[1753065687865,0.7,182.94,182.91,31.54418817]
[1753065688702,0.7,182.94,182.92,0.23869325]
[1753065688997,0.7,182.94,182.91,31.54418817]
[1753065689197,0.7,182.94,182.92,0.23666211]
[1753065689705,2.06,182.96,182.92,0.23666211]
[1753065689871,2.06,182.96,182.92,5.75085028]
[1753065690267,0.7,182.95,182.91,26.03]
[1753065690499,0.7,182.95,182.93,0.10814105]
[1753065691184,2.06,182.96,182.93,11.08884702]
[1753065691383,2.06,182.96,182.94,5.51418817]
[1753065692007,2.06,182.96,182.95,5.51418817]
[1753065692185,2.06,182.96,182.95,6.02418817]
[1753065693209,2.06,182.96,182.95,5.4659743]
[1753065693373,2.76,182.96,182.93,5.62232922]
[1753065693574,2.76,182.96,182.93,11.08889526]
[1753065693774,2.06,182.96,182.95,5.51418817]
[1753065694075,2.06,182.96,182.94,5.76341019]
[1753065694495,2.06,182.96,182.94,0.24922202]
[1753065694678,2.76,182.96,182.94,0.24922202]
[1753065695397,0.7,182.95,182.94,0.19180834]
[1753065695587,6.21418817,182.95,182.94,0.19180834]
[1753065699015,11.68016247,182.95,182.94,0.19180834]
[1753065699214,11.68016247,182.95,182.91,0.03]
[1753065699215,5.51418817,182.92,182.91,0.03]
[1753065699393,5.51418817,182.92,182.87,0.03]
[1753065699589,5.51418817,182.88,182.87,0.03]
[1753065700025,6.21418817,182.88,182.87,0.03]
[1753065701214,0.7,182.88,182.87,0.03]
[1753065701624,6.21418817,182.88,182.87,0.03]
[1753065701823,0.7,182.88,182.87,0.03]
[1753065702002,6.21418817,182.88,182.87,0.03]
[1753065702612,0.7,182.88,182.87,0.03]
[1753065702901,6.21418817,182.88,182.87,0.03]
[1753065703099,0.7,182.88,182.87,0.03]
[1753065705423,5.51418817,182.89,182.87,0.03]
[1753065706528,5.51418817,182.9,182.87,0.03]
[1753065707210,6.17418817,182.9,182.87,0.03]
[1753065708596,5.51418817,182.91,182.87,0.03]
[1753065708795,0.66,182.92,182.87,0.03]
[1753065708999,5.51418817,182.91,182.87,0.03]
[1753065709411,5.51418817,182.88,182.83,0.03]
[1753065709608,1.6161,182.83,182.72,0.2]
[1753065709795,5.51418817,182.73,182.62,0.7]
[1753065709997,5.51418817,182.66,182.59,0.7]
[1753065710302,5.51418817,182.66,182.58,5.51418817]
[1753065710517,6.17418817,182.66,182.59,0.7]
[1753065710711,6.17418817,182.66,182.59,6.17670347]
[1753065711202,6.17418817,182.66,182.56,6.21418817]
[1753065711602,6.17418817,182.66,182.57,10.99149372]
[1753065711907,11.64884052,182.66,182.53,5.54418817]
[1753065712108,16.78468397,182.65,182.53,0.03]
[1753065712309,5.51418817,182.62,182.53,0.03]
[1753065712927,0.66,182.62,182.56,5.51418817]
[1753065713146,6.17418817,182.62,182.56,5.51418817]
[1753065713327,5.51418817,182.63,182.57,5.51418817]
[1753065713534,0.66,182.65,182.6,5.51418817]
[1753065714852,0.66,182.65,182.6,10.99049033]
[1753065715145,0.66,182.65,182.6,5.51418817]
[1753065715524,0.66,182.65,182.59,10.99093287]
[1753065715525,6.17418817,182.65,182.59,10.99093287]
[1753065715750,6.17418817,182.64,182.57,6.17709198]
[1753065715926,5.51418817,182.63,182.57,10.99145929]
[1753065716240,6.17418817,182.63,182.57,5.51418817]
[1753065716422,0.66,182.62,182.57,10.99143969]
[1753065717036,0.66,182.62,182.61,0.53]
[1753065717750,5.51418817,182.64,182.61,0.53]
[1753065717941,0.66,182.63,182.61,0.53]
[1753065718136,0.66,182.62,182.61,0.53]
[1753065719749,5.51418817,182.64,182.61,0.53]
[1753065720153,0.66,182.63,182.61,0.53]
[1753065720653,0.66,182.66,182.61,6.04418817]
[1753065720858,0.66,182.66,182.62,5.51418817]
[1753065721059,0.66,182.68,182.63,5.51418817]
[1753065721234,0.66,182.67,182.63,5.51418817]
[1753065721751,0.66,182.67,182.62,5.51418817]
[1753065722552,0.66,182.66,182.61,6.04418817]
[1753065722742,0.66,182.66,182.62,5.51418817]
[1753065723854,0.66,182.65,182.61,6.04418817]
[1753065724153,5.51418817,182.66,182.61,0.53]
[1753065724343,0.66,182.65,182.61,0.53]
[1753065724737,0.66,182.65,182.61,6.04418817]
[1753065725754,6.17418817,182.67,182.61,6.04418817]
[1753065726446,5.51418817,182.66,182.61,0.53]
[1753065726635,5.51418817,182.66,182.61,6.04418817]
[1753065726829,0.66,182.65,182.61,0.53]
[1753065727029,5.51418817,182.63,182.61,0.53]
[1753065727229,0.66,182.62,182.61,0.53]
[1753065728557,0.66,182.67,182.61,6.74418817]
[1753065728777,5.51418817,182.65,182.61,0.53]
[1753065728931,5.51418817,182.63,182.61,0.53]
[1753065729343,0.66,182.62,182.61,0.53]
[1753065729560,0.66,182.67,182.61,0.53]
[1753065729747,5.51418817,182.66,182.61,0.53]
[1753065730059,6.17418817,182.65,182.61,0.53]
[1753065730635,0.66,182.64,182.61,0.53]
[1753065730834,0.66,182.63,182.61,0.53]
[1753065731050,0.66,182.62,182.61,0.53]
[1753065731634,16.423508,182.74,182.63,6.5124]
[1753065731839,0.66,182.84,182.76,26.0]
[1753065732065,0.66,182.84,182.8,5.51418817]
[1753065732564,1.5561,182.88,182.83,5.51418817]
[1753065732565,0.66,182.88,182.83,5.51418817]
[1753065732738,0.66,182.88,182.84,5.51418817]
[1753065733140,0.66,182.88,182.83,5.51418817]
[1753065733650,0.06,182.91,182.85,5.51418817]
[1753065733843,0.06,182.91,182.9,5.51418817]
[1753065734745,6.28418817,182.91,182.81,49.28]
[1753065734956,5.51418817,182.89,182.84,26.0]
[1753065735156,6.22418817,182.88,182.82,5.51418817]
[1753065735360,6.22418817,182.88,182.81,65.84]
[1753065735564,5.51418817,182.87,182.82,5.51418817]
[1753065735774,5.51418817,182.87,182.81,65.84]
[1753065735775,0.71,182.87,182.81,65.84]
[1753065735956,0.71,182.87,182.82,5.51418817]
[1753065737460,0.71,182.86,182.81,26.0]
[1753065737758,0.71,182.85,182.8,5.51418817]
[1753065738172,5.51418817,182.86,182.81,5.51418817]
[1753065738368,5.51418817,182.9,182.82,0.7]
[1753065738557,5.51418817,182.89,182.84,5.51418817]
[1753065738758,5.51418817,182.86,182.8,5.51418817]
[1753065739051,0.71,182.88,182.81,5.51418817]
[1753065739257,8.33400639,182.87,182.81,8.33400639]
[1753065739681,8.33400639,182.86,182.8,8.33400639]
[1753065739874,9.04400639,182.86,182.8,8.33400639]
[1753065740566,9.04400639,182.86,182.79,8.33400639]
[1753065740567,8.33400639,182.85,182.79,8.33400639]
[1753065740762,8.33400639,182.82,182.76,8.33400639]
[1753065740964,9.04400639,182.82,182.76,8.33400639]
[1753065741287,8.33400639,182.8,182.74,8.33400639]
[1753065741455,8.33400639,182.8,182.72,8.33400639]
[1753065741456,8.33400639,182.78,182.72,8.33400639]
[1753065741767,8.33400639,182.77,182.71,9.03400639]
[1753065742155,8.33400639,182.77,182.72,8.33400639]
[1753065742355,8.33400639,182.78,182.72,9.03400639]
[1753065743668,0.71,182.82,182.73,9.03400639]
[1753065743870,8.33400639,182.79,182.73,9.03400639]
[1753065744783,8.33400639,182.79,182.73,0.7]
[1753065745095,8.33400639,182.78,182.72,34.33400639]
[1753065745671,8.33400639,182.78,182.72,26.0]
[1753065745870,8.33400639,182.78,182.72,34.33400639]
[1753065747014,8.33400639,182.73,182.64,22.7297]
[1753065747293,8.33400639,182.73,182.67,8.33400639]
[1753065747682,8.33400639,182.73,182.67,34.33400639]
[1753065747875,8.33400639,182.72,182.66,9.03400639]
[1753065748486,8.33400639,182.72,182.67,26.0]
[1753065748790,8.33400639,182.72,182.67,35.03400639]
[1753065748969,8.33400639,182.73,182.68,0.7]
[1753065749173,8.33400639,182.74,182.69,35.03400639]
[1753065749392,6.18136167,182.77,182.69,35.03400639]
[1753065749589,8.33400639,182.73,182.69,26.0]
[1753065749793,9.04400639,182.73,182.67,34.33400639]
[1753065749968,8.33400639,182.7,182.64,15.29370639]
[1753065750291,6.18325811,182.71,182.64,8.33400639]
[1753065750494,8.33400639,182.7,182.64,8.33400639]
[1753065750705,8.33400639,182.69,182.63,26.0]
[1753065750903,8.33400639,182.7,182.64,8.33400639]
[1753065751092,8.33400639,182.7,182.64,9.03400639]
[1753065754295,8.33400639,182.7,182.64,26.7]
[1753065754595,8.33400639,182.7,182.64,9.03400639]
[1753065754766,13.80750171,182.7,182.64,9.03400639]
[1753065754972,5.4731964,182.71,182.64,9.03400639]
[1753065755172,8.33400639,182.7,182.64,9.03400639]
[1753065755783,8.33400639,182.7,182.64,9.06400639]
[1753065755980,8.39400639,182.7,182.64,9.06400639]
[1753065756479,13.86751815,182.7,182.64,9.06400639]
[1753065756796,13.86751815,182.7,182.64,8.36400639]
[1753065757297,0.06,182.7,182.64,9.06400639]
[1753065757496,13.86747149,182.7,182.64,9.06400639]
[1753065757913,8.33400639,182.68,182.64,0.03]
[1753065758113,8.33400639,182.66,182.64,0.03]
[1753065758503,9.04400639,182.65,182.64,0.03]
[1753065760422,14.51895848,182.65,182.64,0.03]
[1753065761412,11.72384858,182.65,182.64,0.03]
[1753065761831,28.50853255,182.65,182.64,0.03]
[1753065762499,28.50853255,182.65,182.64,1e-08]
[1753065763929,38.50853255,182.65,182.64,1e-08]
[1753065764998,28.50853255,182.65,182.64,1e-08]
[1753065765201,38.50853255,182.65,182.64,1e-08]
[1753065765909,28.50853255,182.65,182.64,1e-08]
[1753065766113,38.50853255,182.65,182.64,1e-08]
[1753065766310,16.78468397,182.64,182.61,0.03]
[1753065766508,22.32358046,182.62,182.61,0.03]
[1753065766917,29.00658046,182.62,182.6,0.03]
[1753065767223,22.99358046,182.61,182.6,0.03]
[1753065767906,28.46973182,182.61,182.6,0.03]
[1753065769239,6.14615136,182.61,182.6,0.03]
[1753065769405,11.68504785,182.61,182.6,0.03]
[1753065770327,6.14615136,182.61,182.6,0.03]
[1753065770514,11.68504785,182.61,182.6,0.03]
[1753065770711,5.47615136,182.61,182.6,0.03]
[1753065770925,11.01504785,182.61,182.6,0.03]
[1753065771309,11.68504785,182.61,182.6,0.03]
[1753065771513,0.67,182.61,182.6,0.03]
[1753065771726,5.53889649,182.62,182.6,0.03]
[1753065772009,5.53889649,182.61,182.6,0.53]
[1753065772417,6.20889649,182.61,182.6,0.53]
[1753065772807,6.20889649,182.61,182.6,0.03]
[1753065773824,27.80063161,182.58,182.57,0.03]
[1753065774041,67.26063161,182.58,182.57,0.03]
[1753065774336,67.93063161,182.58,182.57,0.03]
[1753065774535,39.46,182.58,182.57,0.03]
[1753065774721,45.66889649,182.58,182.57,0.03]
[1753065775520,67.93063161,182.58,182.57,0.03]
[1753065775714,22.32358046,182.57,182.56,0.03]
[1753065775918,16.78468397,182.55,182.53,0.03]
[1753065776219,61.80358046,182.54,182.53,0.03]
[1753065776418,62.47358046,182.54,182.53,0.03]
[1753065778023,67.9518318,182.54,182.53,0.03]
[1753065780144,16.78468397,182.53,182.46,0.2]
[1753065780326,5.53889649,182.47,182.46,0.2]
[1753065780529,44.97889649,182.47,182.46,0.2]
[1753065781044,45.64889649,182.47,182.46,0.2]
[1753065781645,62.43358046,182.47,182.46,0.2]
[1753065781846,42.78468397,182.46,182.42,0.2]
[1753065782153,53.80513502,182.43,182.42,0.2]
[1753065782456,5.53889649,182.43,182.42,0.2]
[1753065782652,16.78468397,182.48,182.42,0.2]
[1753065782825,5.53889649,182.43,182.42,0.2]
[1753065783027,44.99889649,182.43,182.42,0.2]
[1753065783339,39.46,182.47,182.42,6.43889649]
[1753065783532,39.46,182.47,182.43,0.7]
[1753065783731,39.46,182.47,182.44,0.7]
[1753065785227,5.53889649,182.46,182.42,0.2]
[1753065785427,5.53889649,182.46,182.42,0.9]
[1753065785847,44.99889649,182.47,182.42,0.2]
[1753065786052,39.46,182.47,182.43,0.7]
[1753065786252,39.44,182.48,182.44,5.53889649]
[1753065786553,44.97889649,182.5,182.45,0.7]
[1753065786754,44.97889649,182.5,182.44,5.53889649]
[1753065786938,44.97889649,182.5,182.46,0.7]
[1753065787136,5.47728508,182.58,182.47,0.7]
[1753065787339,5.53889649,182.52,182.47,0.7]
[1753065787541,44.97889649,182.52,182.47,0.7]
[1753065788847,44.97889649,182.52,182.48,0.7]
[1753065789048,5.53889649,182.51,182.45,0.7]
[1753065789360,5.53889649,182.5,182.47,0.5]
[1753065789536,5.53889649,182.5,182.45,0.7]
[1753065790535,5.53889649,182.49,182.45,0.7]
[1753065790757,5.53889649,182.49,182.44,26.0]
[1753065790958,5.53889649,182.49,182.44,26.7]
[1753065791260,5.53889649,182.49,182.44,26.0]
[1753065791442,5.53889649,182.49,182.45,0.7]
[1753065794236,5.53889649,182.5,182.46,0.5]
[1753065794668,5.53889649,182.5,182.46,0.68]
[1753065799363,5.53889649,182.5,182.44,31.71889649]
[1753065800245,6.19889649,182.49,182.42,0.2]
[1753065800565,6.19889649,182.49,182.43,6.21889649]
[1753065800566,5.53889649,182.49,182.43,6.21889649]
[1753065801069,5.53889649,182.46,182.42,0.2]
[1753065801441,5.53889649,182.46,182.44,0.03]
[1753065801772,0.72,182.5,182.45,0.68]
[1753065801956,5.59889649,182.5,182.45,0.68]
[1753065802558,5.59889649,182.5,182.44,0.03]
[1753065802559,5.53889649,182.46,182.44,0.03]
[1753065802755,16.78468397,182.44,182.42,0.2]
[1753065802991,5.53889649,182.43,182.34,4.8875]
[1753065803174,3.40795491,182.36,182.34,4.8875]
[1753065803871,3.40795491,182.35,182.34,4.8875]
[1753065804072,20.85263888,182.35,182.34,4.8875]
[1753065804280,89.68059379,182.35,182.34,4.8875]
[1753065804496,95.1645532,182.35,182.34,4.8875]
[1753065805174,93.906408,182.35,182.34,4.8875]
[1753065806585,93.906408,182.35,182.25,0.2]
[1753065806586,16.78468397,182.34,182.25,0.2]
[1753065806794,5.55776462,182.27,182.25,0.2]
[1753065806989,17.44468397,182.34,182.25,0.2]
[1753065806990,5.55776462,182.26,182.25,0.2]
[1753065807206,0.66,182.27,182.25,0.2]
[1753065807410,5.55776462,182.26,182.25,0.2]
[1753065813024,5.55776462,182.29,182.25,0.88]
[1753065814692,5.55776462,182.29,182.25,0.2]
[1753065814893,5.55776462,182.29,182.26,0.68]
[1753065816210,5.55776462,182.29,182.25,0.2]
[1753065816409,22.34244859,182.26,182.21,0.13414899]
[1753065816616,16.78468397,182.21,182.13,0.03]
[1753065816822,5.55776462,182.18,182.13,0.71]
[1753065817041,6.21776462,182.17,182.13,0.03]
[1753065817696,5.55776462,182.17,182.13,0.03]
[1753065817898,5.55776462,182.17,182.13,26.71]
[1753065818408,5.55776462,182.18,182.14,0.68]
[1753065818600,5.55776462,182.18,182.15,0.68]
[1753065818809,0.66,182.22,182.16,6.23776462]
[1753065818810,39.5,182.22,182.16,6.23776462]
[1753065819018,45.05776462,182.22,182.16,6.23776462]
[1753065819219,5.55776462,182.21,182.16,0.68]
[1753065819431,5.55776462,182.2,182.16,0.68]
[1753065821095,5.55776462,182.21,182.16,0.68]
[1753065821695,5.55776462,182.21,182.16,6.23776462]
[1753065822829,6.21776462,182.21,182.16,0.68]
[1753065823127,5.55776462,182.19,182.14,6.3436]
[1753065823437,5.55776462,182.19,182.14,12.58136462]
[1753065823608,6.21776462,182.2,182.14,11.90136462]
[1753065823805,6.21776462,182.2,182.15,6.23776462]
[1753065824003,5.55776462,182.2,182.16,0.03]
[1753065824225,5.55776462,182.2,182.16,0.71]
[1753065824625,5.55776462,182.18,182.16,0.03]
[1753065824804,5.55776462,182.17,182.16,0.03]
[1753065825227,0.67,182.18,182.16,0.03]
[1753065825724,6.22776462,182.18,182.16,0.03]
[1753065827027,39.5,182.22,182.16,0.03]
[1753065827028,40.17,182.22,182.16,0.03]
[1753065827211,22.34244859,182.24,182.18,5.55776462]
[1753065827405,39.42,182.23,182.18,5.55776462]
[1753065827601,39.42,182.23,182.19,6.23776462]
[1753065828021,39.42,182.23,182.19,0.68]
[1753065828328,0.67,182.22,182.16,0.03]
[1753065828624,16.78468397,182.21,182.16,0.03]
[1753065828831,6.22776462,182.2,182.16,0.03]
[1753065829011,5.55776462,182.19,182.16,0.03]
[1753065829523,6.22776462,182.19,182.16,0.03]
[1753065829829,5.55776462,182.19,182.16,0.03]
[1753065829998,0.67,182.18,182.16,0.03]
[1753065830203,5.55776462,182.19,182.16,0.03]
[1753065830204,6.22776462,182.19,182.16,0.03]
[1753065830725,6.22776462,182.18,182.16,0.03]
[1753065830944,5.55776462,182.17,182.16,0.03]
[1753065831122,6.22776462,182.17,182.16,0.03]
[1753065831320,23.01244859,182.17,182.16,0.03]
[1753065832408,0.67,182.17,182.16,0.03]
[1753065832609,6.22776462,182.17,182.16,0.03]
[1753065833011,0.67,182.17,182.16,0.03]
[1753065833212,6.22776462,182.17,182.16,0.03]
[1753065833728,22.94406202,182.17,182.16,0.03]
[1753065834038,28.50182664,182.17,182.13,0.03]
[1753065834208,22.34244859,182.14,182.13,0.03]
[1753065834525,22.27526761,182.13,182.12,0.03]
[1753065834733,28.50303223,182.13,182.12,0.03]
[1753065835430,17.45468397,182.13,182.12,0.03]
[1753065835620,23.01244859,182.13,182.12,0.03]
[1753065837620,28.50303223,182.13,182.12,0.03]
[1753065838521,23.01244859,182.13,182.12,0.03]
[1753065839938,28.50303223,182.13,182.12,0.03]
[1753065840238,23.01244859,182.13,182.12,0.03]
[1753065840536,39.46,182.13,182.12,0.03]
[1753065842548,39.42,182.13,182.12,0.03]
[1753065843046,5.55776462,182.17,182.12,6.26776462]
[1753065843249,39.42,182.16,182.13,6.23776462]
[1753065843414,5.55776462,182.21,182.15,5.55776462]
[1753065843739,39.42,182.2,182.17,5.55776462]
[1753065844115,39.42,182.2,182.17,6.23776462]
[1753065844736,39.42,182.2,182.18,0.68]
[1753065845537,39.42,182.23,182.19,6.23776462]
[1753065846043,45.64776462,182.23,182.18,5.55776462]
[1753065846237,40.09,182.23,182.18,5.55776462]
[1753065846439,40.09,182.23,182.18,6.23776462]
[1753065846642,0.06,182.2,182.19,5.55776462]
[1753065847034,0.06,182.2,182.19,6.23776462]
[1753065847825,0.06,182.2,182.19,37.72654007]
[1753065848027,0.06,182.2,182.19,44.08654007]
[1753065848232,0.06,182.2,182.19,18.08654007]
[1753065852227,0.06,182.2,182.19,44.08654007]
[1753065852432,0.06,182.24,182.22,26.0]
[1753065852633,0.06,182.24,182.23,5.55776462]
[1753065852826,0.06,182.24,182.23,6.23776462]
[1753065854335,0.06,182.24,182.23,11.72533527]
[1753065860146,0.06,182.28,182.26,26.0]
[1753065860333,0.06,182.28,182.27,50.37552924]
[1753065860529,0.06,182.28,182.27,51.04552924]
[1753065862447,0.06,182.28,182.27,56.53189561]
[1753065863229,0.06,182.28,182.27,48.82319843]
[1753065864033,0.06,182.28,182.27,51.55154634]
[1753065864968,0.06,182.28,182.27,3.40683206]
[1753065865170,0.06,182.28,182.27,4.07683206]
[1753065866536,0.06,182.28,182.27,9.56319843]
[1753065867947,0.06,182.34,182.29,26.0]
[1753065868152,0.06,182.34,182.33,3.40683206]
[1753065868770,0.06,182.34,182.33,29.40683206]
[1753065868968,0.06,182.34,182.33,69.27683206]
[1753065869451,0.06,182.34,182.33,78.16822508]
[1753065873384,0.06,182.36,182.33,78.71668117]
[1753065873556,0.06,182.36,182.35,3.40683206]
[1753065873755,0.06,182.36,182.35,42.56683206]
[1753065873971,0.06,182.36,182.35,43.23683206]
[1753065874283,0.06,182.38,182.37,26.0]
[1753065874497,0.06,182.38,182.37,68.56683206]
[1753065874654,0.06,182.38,182.37,69.23683206]
[1753065875359,0.06,182.38,182.37,74.72019006]
[1753065877704,0.77,182.38,182.31,0.67]
[1753065878021,0.77,182.38,182.35,3.40683206]
[1753065878161,0.06,182.38,182.35,3.40683206]
[1753065878361,0.71,182.37,182.35,3.40683206]
[1753065878567,0.71,182.37,182.36,3.40683206]
[1753065882567,0.71,182.37,182.35,3.40683206]
[1753065882768,0.71,182.36,182.35,3.40683206]
[1753065884508,0.71,182.36,182.31,0.67]
[1753065884788,0.71,182.35,182.33,3.40683206]
[1753065884971,3.46683206,182.38,182.33,3.40683206]
[1753065885168,0.71,182.34,182.33,3.40683206]
[1753065886089,0.71,182.34,182.32,68.46683206]
[1753065886487,8.94996807,182.38,182.27,12.62411162]
[1753065886488,0.71,182.33,182.27,13.34411162]
[1753065886693,0.71,182.33,182.27,12.62411162]
[1753065887007,0.71,182.33,182.24,5.48703444]
[1753065887173,3.40683206,182.31,182.25,3.40683206]
[1753065887376,0.71,182.3,182.25,42.48683206]
[1753065887597,0.71,182.3,182.25,68.48683206]
[1753065887902,0.71,182.3,182.25,42.48683206]
[1753065888205,0.71,182.3,182.25,68.48683206]
[1753065888403,0.71,182.3,182.25,42.48683206]
[1753065888782,0.71,182.3,182.26,3.40683206]
[1753065888969,0.71,182.29,182.26,3.40683206]
[1753065889376,0.71,182.28,182.26,3.40683206]
[1753065890604,0.71,182.27,182.23,3.40683206]
[1753065890787,0.71,182.27,182.26,0.03]
[1753065892005,0.71,182.3,182.26,3.43683206]
[1753065892189,0.71,182.3,182.27,3.40683206]
[1753065892387,0.71,182.3,182.28,3.40683206]
[1753065892584,22.26864338,182.35,182.28,3.40683206]
[1753065892785,0.71,182.33,182.32,3.40683206]
[1753065893080,0.06,182.36,182.32,29.40683206]
[1753065893298,0.06,182.36,182.35,3.40683206]
[1753065895307,0.06,182.36,182.35,5.5510096]
[1753065895887,0.77,182.36,182.32,5.5510096]
[1753065896087,0.77,182.36,182.31,26.0]
[1753065896312,0.71,182.35,182.33,5.5510096]
[1753065896609,0.71,182.34,182.32,5.5510096]
[1753065898201,0.71,182.34,182.33,5.5510096]
[1753065899922,0.71,182.34,182.32,5.5510096]